fUSD/lending_fUSD_20240409
["ID","MTS","AMOUNT","RATE_DAILY","PERIOD"]
[322001763,1712679072696,-1013.5,0.00020821,2]
[322001764,1712679072723,-1198.24,0.00020821,2]
[322001765,1712679072750,-751.45,0.00020821,2]
[322001766,1712679072784,-780.87,0.00020821,2]
[322001767,1712679072812,-2114.04,0.00020821,2]
[322001768,1712679072841,-374.46256583,0.00020821,2]
[322001769,1712679072869,-500.0,0.00020821,2]
[322001770,1712679072899,-988.15,0.00020821,2]
[322001771,1712679072926,-623.98,0.00020821,2]
[322001772,1712679072955,-1345.9,0.00020821,2]
[322001773,1712679072985,-1311.7,0.00020821,2]
[322001774,1712679073014,-532.22,0.00020821,2]
[322001775,1712679073049,-741.95,0.00020821,2]
[322001776,1712679073079,-942.96,0.00020821,2]
[322001777,1712679073108,-500.0,0.00020821,2]
[322001778,1712679073135,-500.0,0.00020821,2]
[322001779,1712679073163,-200.0,0.0002083,2]
[322001780,1712679073189,-1000.0,0.0002083,2]
[322001781,1712679073217,-500.0,0.0002083,2]
[322001782,1712679073251,-200.0,0.0002083,2]
[322001783,1712679073286,-800.0,0.00020831,2]
[322001784,1712679073320,-500.0,0.00020831,2]
[322001785,1712679073351,-177.82696932,0.00020853,2]
[322001786,1712679073381,-4991.55345343,0.00020896,2]
[322001787,1712679073410,-3147.82800798,0.000209,2]
[322001788,1712679073437,-206.35448214,0.000209,2]
[322001789,1712679073464,-475.98397385,0.000209,3]
[322001790,1712679073492,-164.48116524,0.000209,2]
[322001791,1712679073520,-164.48116521,0.000209,2]
[322001792,1712679073550,-164.48116521,0.000209,2]
[322001793,1712679073577,-164.48116521,0.000209,2]
[322001794,1712679073606,-164.48116521,0.000209,2]
[322001795,1712679073635,-164.48116521,0.000209,2]
[322001796,1712679073663,-2275.6258962,0.00020921,2]
[322001797,1712679073692,-2603.1377875,0.00020986,2]
[322001798,1712679073721,-53312.7542877,0.00020986,2]
[322001799,1712679073769,-6645.9064543,0.00020986,2]
[322001800,1712679073818,-186288.10236431,0.00020995,2]
[322001801,1712679073849,-283.90494494,0.00020995,2]
[322001802,1712679073880,-301.34505868,0.00020995,2]
[322001803,1712679073910,-5439.436148,0.00020995,2]
[322001804,1712679073941,-1856926.83603866,0.00021,2]
[322001805,1712679073971,-955105.31050362,0.00021,2]
[322001806,1712679073999,-204592.39102741,0.00021,2]
[322001807,1712679074027,-1049483.30724191,0.00021,2]
[322001808,1712679074060,-714.86624918,0.00021,2]
[322001809,1712679074094,-709238.94617382,0.00021,2]
[322001810,1712679074128,-175837.74654229,0.00021,2]
[322001811,1712679074160,-127753.55051599,0.00021,2]
[322001812,1712679074193,-2896815.7799828,0.00021,2]
[322001813,1712679075183,150.5,0.0002059,15]
[322001814,1712679075243,150.5,0.0002059,15]
[322001815,1712679075274,150.5,0.0002059,15]
[322001816,1712679075316,150.5,0.0002059,15]
[322001817,1712679075433,150.5,0.0002058,15]
[322001818,1712679075491,150.5,0.0002058,15]
[322001819,1712679075522,154.02,0.0002058,15]
[322001820,1712679075571,150.5,0.0002059,15]
[322001821,1712679075602,150.5,0.0002058,15]
[322001822,1712679075664,150.5,0.0002057,15]
[322001823,1712679075693,154.58,0.0002057,15]
[322001824,1712679075725,249.0,0.00032419,120]
[322001825,1712679075768,150.5,0.0002058,15]
[322001826,1712679075801,150.5,0.0002057,15]
[322001827,1712679075837,223.73,0.0002059,15]
[322001828,1712679075896,150.5,0.0002059,15]
[322001829,1712679076003,153.6,0.0002057,15]
[322001830,1712679076039,150.5,0.00020985,15]
[322001831,1712679076142,150.5,0.0002058,15]
[322001832,1712679076320,150.5,0.00020975,15]
[322001833,1712679076425,150.5,0.0002057,15]
[322001834,1712679076591,261.5,0.00020965,15]
[322001835,1712679076775,900.0,0.000202,7]
[322001836,1712679077397,1900.0,0.000203,7]
[322001837,1712679077530,152.94,0.0002059,15]
[322001838,1712679077846,2800.0,0.000204,7]
[322001839,1712679078485,3800.0,0.000205,7]
[322001840,1712679095654,555.17,0.00017855,2]
[322001841,1712679102529,2070.78163712,0.0001541,2]
[322001842,1712679168665,20130.85716187,0.0001541,2]
[322001843,1712679171512,307.07,0.00025743,120]
[322001844,1712679171912,307.07,0.00028083,120]
[322001845,1712679183304,150.5,0.0002099,15]
[322001846,1712679183814,150.5,0.0002098,15]
[322001847,1712679184024,150.5,0.0002099,15]
[322001848,1712679184321,150.5,0.0002097,15]
[322001849,1712679184522,150.5,0.0002098,15]
[322001850,1712679185028,150.5,0.0002097,15]
[322001851,1712679188776,8108.85947146,0.0001541,2]
[322001852,1712679275842,4708.66,0.00017752,2]
[322001853,1712679322994,250.0,0.00017746,2]
[322001854,1712679345249,472.0,0.00032314,30]
[322001855,1712679368843,374.126165,0.00017929,2]
[322001856,1712679370481,150.0,0.00032314,30]
[322001857,1712679382617,216.06,0.00017808,10]
[322001858,1712679396056,500.0,0.00017761,2]
[322001859,1712679418434,302.56,0.0001777,2]
[322001860,1712679423547,150.5,0.00020262,15]
[322001861,1712679424030,150.5,0.00020252,15]
[322001862,1712679424502,269.0,0.00020242,15]
[322001863,1712679424624,150.5,0.00020262,15]
[322001864,1712679425125,150.5,0.00020252,15]
[322001865,1712679425304,150.5,0.00020262,15]
[322001866,1712679425596,150.5,0.00020242,15]
[322001867,1712679425834,150.5,0.00020252,15]
[322001868,1712679426071,150.5,0.00021295,15]
[322001869,1712679426300,184.0,0.00020242,15]
[322001870,1712679426538,150.5,0.00021285,15]
[322001871,1712679427082,251.0,0.00021275,15]
[322001872,1712679475791,355.19,0.00017816,5]
[322001873,1712679492816,185.75,0.00017824,2]
[322001874,1712679512979,23900.0,0.00017778,2]
[322001875,1712679518127,-600.0,0.00018005,2]
[322001876,1712679542285,736.59194213,0.00018002,2]
[322001877,1712679543291,155.0,0.00018002,2]
[322001878,1712679548390,486.22436735,0.00018002,2]
[322001879,1712679555761,237.00326337,0.00018002,2]
[322001880,1712679558266,237.00326337,0.00018002,2]
[322001881,1712679560226,449.85093026,0.00018002,2]
[322001882,1712679560266,4573.26074924,0.00018002,2]
[322001883,1712679563262,237.00326337,0.00018002,2]
[322001884,1712679565751,237.00326337,0.00018002,2]
[322001885,1712679572822,237.00326337,0.00018002,2]
[322001886,1712679574482,1062.06209167,0.00018002,2]
[322001887,1712679575411,210.13900974,0.00018002,2]
[322001888,1712679576025,4718.36355901,0.00018002,2]
[322001889,1712679578346,237.00326337,0.00018002,2]
[322001890,1712679578983,161.13807414,0.00018002,2]
[322001891,1712679609305,336.0,0.00018002,2]
[322001892,1712679628545,1000.0,0.00017869,2]
[322001893,1712679638245,4322.29381628,0.00018002,2]
[322001894,1712679638972,1062.06209167,0.00018002,2]
[322001895,1712679642180,624.39,0.00015964,2]
[322001896,1712679711484,1062.06209167,0.00018002,2]
[322001897,1712679722692,200.0,0.00017857,2]
[322001898,1712679747191,35352.16187632,0.00015964,2]
[322001899,1712679765121,1049.83,0.00032462,30]
[322001902,1712679790081,1062.06209167,0.00018002,2]
[322001904,1712679822947,1300.86,0.00017773,2]
[322001905,1712679823662,250.0,0.00017773,2]
[322001906,1712679969511,151.28,0.00017775,2]
[322001907,1712680032493,400.0,0.000188,6]
[322001911,1712680034607,900.0,0.000189,6]
[322001912,1712680036235,438.14,0.00017775,2]
[322001913,1712680036721,1400.0,0.000198,7]
[322001914,1712680038826,1900.0,0.000199,7]
[322001915,1712680039477,23900.0,0.00017775,2]
[322001917,1712680099496,200.0,0.00017779,2]
[322001918,1712680126290,1483.57,0.00017779,2]
[322001922,1712680168544,647.77,0.00017929,2]
[322001924,1712680226966,1241.65229737,0.00018002,2]
[322001989,1712680232438,-1291.15999417,0.00018003,2]
[322001991,1712680232447,-150.0,0.00018004,2]
[322001993,1712680232457,-150.0,0.00018004,2]
[322001995,1712680232466,-339.05,0.00018071,2]
[322001997,1712680232475,-339.05,0.00018121,2]
[322001998,1712680232484,-339.05,0.0001817,2]
[322002000,1712680232493,-339.05,0.0001822,2]
[322002002,1712680232502,-9824.31276849,0.00018227,2]
[322002005,1712680232520,-4869.87206032,0.00018227,2]
[322002006,1712680232531,-4243.84407077,0.00018227,2]
[322002007,1712680232542,-479.84771151,0.00018227,2]
[322002008,1712680232558,-481.02396,0.00018227,2]
[322002009,1712680232570,-284.49703418,0.00018227,2]
[322002010,1712680232583,-521.97670531,0.00018227,2]
[322002011,1712680232595,-14473.15790271,0.00018227,2]
[322002012,1712680232604,-624.39,0.00018228,2]
[322002013,1712680232613,-29859.03,0.00018228,2]
[322002014,1712680232622,-383.59,0.00018228,2]
[322002015,1712680232635,-536.07,0.00018269,2]
[322002016,1712680232645,-339.05,0.00018269,2]
[322002017,1712680232654,-150.99,0.00018279,2]
[322002018,1712680232663,-499.99,0.00018284,2]
[322002019,1712680232672,-339.05,0.00018319,2]
[322002020,1712680232682,-339.05,0.00018368,2]
[322002021,1712680232691,-150.99,0.00018379,2]
[322002022,1712680232701,-167.23,0.00018403,2]
[322002023,1712680232710,-339.05,0.00018418,2]
[322002024,1712680232721,-2101.75986757,0.00018437,2]
[322002025,1712680232730,-863.593082,0.00018443,2]
[322002026,1712680232739,-339.05,0.00018468,2]
[322002027,1712680232748,-150.0,0.00018468,2]
[322002028,1712680232760,-150.0,0.00018468,2]
[322002029,1712680232769,-150.48177089,0.00018468,2]
[322002030,1712680232778,-150.0,0.00018468,2]
[322002031,1712680232788,-264.18707855,0.00018468,2]
[322002032,1712680232797,-150.0,0.00018468,2]
[322002033,1712680232807,-150.0,0.00018468,2]
[322002034,1712680232816,-150.0,0.00018468,2]
[322002035,1712680232826,-150.0,0.00018468,2]
[322002036,1712680232835,-150.0,0.00018468,2]
[322002037,1712680232845,-155.74038737,0.00018468,2]
[322002038,1712680232854,-339.05,0.00018517,2]
[322002039,1712680232863,-868.59765889,0.00018538,2]
[322002040,1712680232874,-339.05,0.00018567,2]
[322002041,1712680232883,-339.05,0.00018616,2]
[322002042,1712680232892,-339.05,0.00018666,2]
[322002043,1712680232903,-339.05,0.00018715,2]
[322002044,1712680232912,-307.07,0.00018722,2]
[322002045,1712680232922,-339.05,0.00018765,2]
[322002046,1712680232931,-150.0,0.00018811,2]
[322002047,1712680232940,-339.05,0.00018814,2]
[322002048,1712680232949,-339.05,0.00018864,2]
[322002049,1712680232959,-315.85419358,0.0001889,2]
[322002050,1712680232968,-1000.0,0.00018904,2]
[322002051,1712680232977,-339.05,0.00018914,2]
[322002052,1712680232987,-339.05,0.00018963,2]
[322002053,1712680232996,-1576.3581,0.00018977,2]
[322002054,1712680233005,-1250.0,0.00019,3]
[322002055,1712680233020,-339.05,0.00019013,2]
[322002056,1712680233030,-495.7896,0.00019076,2]
[322002057,1712680233039,-814.8487,0.00019077,2]
[322002058,1712680233049,-1000.0,0.00019077,2]
[322002059,1712680233058,-271.20188166,0.00019077,2]
[322002060,1712680233067,-4069.17550429,0.00019077,2]
[322002061,1712680233077,-393.47850105,0.00019078,2]
[322002062,1712680233086,-393.47850105,0.00019078,2]
[322002063,1712680233096,-384.09746247,0.00019078,2]
[322002064,1712680233106,-2500.0,0.00019091,2]
[322002065,1712680233118,-2500.0,0.00019091,2]
[322002066,1712680233129,-1000.0,0.000191,2]
[322002067,1712680233139,-1000.0,0.000191,2]
[322002068,1712680233147,-1000.0,0.000191,2]
[322002069,1712680233157,-1000.0,0.000191,2]
[322002070,1712680233166,-1000.0,0.000191,2]
[322002071,1712680233176,-214.77,0.00019146,2]
[322002072,1712680233186,-800.0,0.00019151,2]
[322002073,1712680233196,-800.0,0.00019151,2]
[322002074,1712680233207,-150.0,0.00019153,2]
[322002075,1712680233217,-620.17244457,0.00019158,2]
[322002076,1712680233227,-426.25801578,0.00019166,2]
[322002077,1712680233236,-102742.79796076,0.00019168,2]
[322002078,1712680233262,-2144.45724868,0.00019168,2]
[322002079,1712680233275,-1934.24120179,0.00019168,2]
[322002080,1712680233286,-299.99,0.00019168,2]
[322002081,1712680233298,-2903.5461646,0.00019168,2]
[322002082,1712680233318,-204308.21660195,0.00019168,2]
[322002083,1712680233329,-280.06516522,0.00019175,2]
[322002084,1712680233338,-156.56249745,0.00019175,2]
[322002085,1712680233349,-193.93233813,0.00019175,2]
[322002086,1712680233358,-190.77846715,0.00019175,2]
[322002087,1712680233368,-206.83096015,0.00019175,2]
[322002088,1712680233378,-155.0,0.00019175,2]
[322002089,1712680233388,-183.66929566,0.00019175,2]
[322002090,1712680233399,-250.42974741,0.00019175,2]
[322002091,1712680233410,-200.49651231,0.00019175,2]
[322002092,1712680233421,-190.0,0.00019175,2]
[322002093,1712680233430,-155.0604962,0.00019175,2]
[322002094,1712680233440,-485.66071093,0.00019175,2]
[322002095,1712680233450,-487.67935581,0.00019175,2]
[322002096,1712680233459,-1500.0,0.00019175,2]
[322002097,1712680233468,-428.34372909,0.00019175,2]
[322002098,1712680233478,-210.02388994,0.00019175,2]
[322002099,1712680233487,-276.2164114,0.00019175,2]
[322002100,1712680233496,-161.06954375,0.00019175,2]
[322002101,1712680233506,-1981.5376248,0.00019175,2]
[322002102,1712680233515,-1335.84461981,0.00019175,2]
[322002103,1712680233524,-505.72407741,0.00019175,2]
[322002104,1712680233534,-288.1832685,0.00019175,2]
[322002105,1712680233545,-155.0,0.00019176,2]
[322002106,1712680233557,-155.6195763,0.00019176,2]
[322002107,1712680233567,-155.71474789,0.00019176,2]
[322002108,1712680233577,-155.0,0.00019176,2]
[322002109,1712680233586,-369.14774924,0.00019176,2]
[322002110,1712680233597,-267.83152557,0.00019176,2]
[322002111,1712680233606,-155.9844329,0.00019176,2]
[322002112,1712680233615,-215.47501592,0.00019176,2]
[322002113,1712680233625,-155.6620029,0.00019176,2]
[322002114,1712680233636,-221.86498975,0.00019176,2]
[322002115,1712680233647,-155.71751469,0.00019176,2]
[322002116,1712680233656,-8466.5371302,0.00019176,2]
[322002117,1712680233666,-1599.29640351,0.00019176,2]
[322002118,1712680233676,-404.64904751,0.00019176,2]
[322002119,1712680233685,-620.31159771,0.00019176,2]
[322002120,1712680233694,-155.0,0.00019176,2]
[322002121,1712680233705,-156.91334829,0.00019176,2]
[322002122,1712680233715,-236.18996574,0.00019176,2]
[322002123,1712680233725,-155.0,0.00019176,2]
[322002124,1712680233734,-550.49040338,0.00019176,2]
[322002125,1712680233744,-155918.01952964,0.00019177,2]
[322002126,1712680233753,-311.7785482,0.00019177,2]
[322002127,1712680233763,-500.0,0.00019178,2]
[322002128,1712680233772,-500.0,0.00019178,2]
[322002129,1712680233782,-503.56145485,0.00019178,2]
[322002130,1712680233791,-500.0,0.00019178,2]
[322002131,1712680233801,-183.7194014,0.00019178,2]
[322002132,1712680233810,-500.0,0.00019178,2]
[322002133,1712680233819,-500.0,0.00019178,2]
[322002134,1712680233828,-228.30421015,0.00019178,2]
[322002135,1712680233838,-500.0,0.00019178,2]
[322002136,1712680233847,-500.0,0.00019178,2]
[322002137,1712680233856,-500.0,0.00019178,2]
[322002138,1712680233865,-500.0,0.00019178,2]
[322002139,1712680233875,-500.35373644,0.00019178,2]
[322002140,1712680233884,-500.0,0.00019178,2]
[322002141,1712680233894,-500.52781095,0.00019178,2]
[322002142,1712680233904,-513.51444201,0.00019178,2]
[322002143,1712680233913,-500.0,0.00019178,2]
[322002144,1712680233922,-500.0,0.00019178,2]
[322002145,1712680233932,-215.29547574,0.00019178,2]
[322002146,1712680233941,-500.0,0.00019178,2]
[322002147,1712680233950,-500.0,0.00019178,2]
[322002148,1712680233959,-500.34534376,0.00019178,2]
[322002149,1712680233969,-500.0,0.00019178,2]
[322002150,1712680233978,-500.0,0.00019178,2]
[322002151,1712680233988,-500.54299466,0.00019178,2]
[322002152,1712680233998,-500.0,0.00019178,2]
[322002153,1712680234008,-500.0,0.00019178,2]
[322002154,1712680234018,-500.0,0.00019178,2]
[322002155,1712680234028,-506.73206709,0.00019178,2]
[322002156,1712680234038,-500.0,0.00019178,2]
[322002157,1712680234047,-500.0,0.00019178,2]
[322002158,1712680234057,-500.0,0.00019178,2]
[322002159,1712680234066,-500.0,0.00019178,2]
[322002160,1712680234076,-500.0,0.00019178,2]
[322002161,1712680234085,-500.0,0.00019178,2]
[322002162,1712680234094,-500.0,0.00019178,2]
[322002163,1712680234104,-500.5751319,0.00019178,2]
[322002164,1712680234113,-500.0,0.00019178,2]
[322002165,1712680234122,-500.0,0.00019178,2]
[322002166,1712680234131,-500.0,0.00019178,2]
[322002167,1712680234141,-500.0,0.00019178,2]
[322002168,1712680234152,-574.16885424,0.00019178,2]
[322002169,1712680234161,-500.0,0.00019178,2]
[322002170,1712680234171,-500.0,0.00019178,2]
[322002171,1712680234181,-500.0,0.00019178,2]
[322002172,1712680234190,-500.0,0.00019178,2]
[322002173,1712680234199,-500.0,0.00019178,2]
[322002174,1712680234208,-500.0,0.00019178,2]
[322002175,1712680234218,-500.0,0.00019178,2]
[322002176,1712680234227,-500.0,0.00019178,2]
[322002177,1712680234236,-500.0,0.00019178,2]
[322002178,1712680234246,-500.0,0.00019178,2]
[322002179,1712680234255,-500.0,0.00019178,2]
[322002180,1712680234264,-399.06028,0.00019178,2]
[322002181,1712680234274,-500.0,0.00019178,2]
[322002182,1712680234283,-500.0,0.00019178,2]
[322002183,1712680234292,-514.00523527,0.00019178,2]
[322002184,1712680234301,-500.0,0.00019178,2]
[322002185,1712680234311,-500.0,0.00019178,2]
[322002186,1712680234320,-500.0,0.00019178,2]
[322002187,1712680234329,-512.46411686,0.00019178,2]
[322002188,1712680234338,-500.0,0.00019178,2]
[322002189,1712680234347,-500.0,0.00019178,2]
[322002190,1712680234357,-500.0,0.00019178,2]
[322002191,1712680234367,-500.0,0.00019178,2]
[322002192,1712680234377,-500.0,0.00019178,2]
[322002193,1712680234386,-500.0,0.00019178,2]
[322002194,1712680234396,-522.25734771,0.00019178,2]
[322002195,1712680234406,-500.0,0.00019178,2]
[322002196,1712680234415,-500.0,0.00019178,2]
[322002197,1712680234425,-500.0,0.00019178,2]
[322002198,1712680234435,-500.0,0.00019178,2]
[322002199,1712680234445,-500.0,0.00019178,2]
[322002200,1712680234456,-544.05,0.00019178,2]
[322002201,1712680234468,-500.0,0.00019178,2]
[322002202,1712680234479,-500.0,0.00019178,2]
[322002203,1712680234490,-500.0,0.00019178,2]
[322002204,1712680234501,-500.0,0.00019178,2]
[322002205,1712680234510,-500.0,0.00019178,2]
[322002206,1712680234520,-500.0,0.00019178,2]
[322002207,1712680234530,-500.0,0.00019178,2]
[322002208,1712680234540,-500.0,0.00019178,2]
[322002209,1712680234552,-500.0,0.00019178,2]
[322002210,1712680234561,-500.0,0.00019178,2]
[322002211,1712680234571,-500.0,0.00019178,2]
[322002212,1712680234580,-505.75926017,0.00019178,2]
[322002213,1712680234590,-500.0,0.00019178,2]
[322002214,1712680234599,-500.0,0.00019178,2]
[322002215,1712680234609,-500.0,0.00019178,2]
[322002216,1712680234619,-500.0,0.00019178,2]
[322002217,1712680234628,-500.0,0.00019178,2]
[322002218,1712680234638,-500.0,0.00019178,2]
[322002219,1712680234647,-578.38914678,0.00019178,2]
[322002220,1712680234657,-500.0,0.00019178,2]
[322002221,1712680234666,-500.0,0.00019178,2]
[322002222,1712680234675,-500.0,0.00019178,2]
[322002223,1712680234684,-500.0,0.00019178,2]
[322002224,1712680234693,-500.0,0.00019178,2]
[322002225,1712680234703,-582.95,0.00019178,2]
[322002226,1712680234712,-500.0,0.00019178,2]
[322002227,1712680234722,-500.0,0.00019178,2]
[322002228,1712680234731,-500.0,0.00019178,2]
[322002229,1712680234741,-500.0,0.00019178,2]
[322002230,1712680234750,-500.0,0.00019178,2]
[322002231,1712680234760,-500.0,0.00019178,2]
[322002232,1712680234769,-594.06,0.00019178,2]
[322002233,1712680234779,-500.0,0.00019178,2]
[322002234,1712680234789,-500.0,0.00019178,2]
[322002235,1712680234798,-605.78446193,0.00019178,2]
[322002236,1712680234807,-500.0,0.00019178,2]
[322002237,1712680234817,-500.0,0.00019178,2]
[322002238,1712680234826,-500.0,0.00019178,2]
[322002239,1712680234835,-500.0,0.00019178,2]
[322002240,1712680234845,-500.0,0.00019178,2]
[322002241,1712680234855,-500.0,0.00019178,2]
[322002242,1712680234865,-500.0,0.00019178,2]
[322002243,1712680234875,-500.0,0.00019178,2]
[322002244,1712680234886,-500.0,0.00019178,2]
[322002245,1712680234897,-500.0,0.00019178,2]
[322002246,1712680234908,-539.54,0.00019178,2]
[322002247,1712680234919,-591.03,0.00019178,2]
[322002248,1712680234929,-500.0,0.00019178,2]
[322002249,1712680234939,-500.0,0.00019178,2]
[322002250,1712680234952,-500.0,0.00019178,2]
[322002251,1712680234963,-500.0,0.00019178,2]
[322002252,1712680234973,-500.0,0.00019178,2]
[322002253,1712680234984,-500.0,0.00019178,2]
[322002254,1712680234995,-504.33469538,0.00019178,2]
[322002255,1712680235006,-500.0,0.00019178,2]
[322002256,1712680235018,-500.0,0.00019178,2]
[322002257,1712680235031,-500.0,0.00019178,2]
[322002258,1712680235042,-500.0,0.00019178,2]
[322002259,1712680235052,-500.0,0.00019178,2]
[322002260,1712680235063,-500.0,0.00019178,2]
[322002261,1712680235074,-500.0,0.00019178,2]
[322002262,1712680235085,-500.0,0.00019178,2]
[322002263,1712680235097,-500.0,0.00019178,2]
[322002264,1712680235109,-500.0,0.00019178,2]
[322002265,1712680235120,-500.0,0.00019178,2]
[322002266,1712680235131,-500.0,0.00019178,2]
[322002267,1712680235141,-500.0,0.00019178,2]
[322002268,1712680235153,-500.0,0.00019178,2]
[322002269,1712680235164,-500.0,0.00019178,2]
[322002270,1712680235175,-500.0,0.00019178,2]
[322002271,1712680235186,-500.0,0.00019178,2]
[322002272,1712680235198,-500.0,0.00019178,2]
[322002273,1712680235214,-500.0,0.00019178,2]
[322002274,1712680235225,-500.0,0.00019178,2]
[322002275,1712680235235,-496.5,0.00019178,2]
[322002276,1712680235245,-530.84,0.00019178,2]
[322002277,1712680235255,-500.0,0.00019178,2]
[322002278,1712680235266,-500.0,0.00019178,2]
[322002279,1712680235276,-500.0,0.00019178,2]
[322002280,1712680235286,-500.0,0.00019178,2]
[322002281,1712680235297,-500.0,0.00019178,2]
[322002282,1712680235307,-500.0,0.00019178,2]
[322002283,1712680235317,-500.0,0.00019178,2]
[322002284,1712680235328,-500.0,0.00019178,2]
[322002285,1712680235338,-500.0,0.00019178,2]
[322002286,1712680235348,-500.0,0.00019178,2]
[322002287,1712680235358,-500.0,0.00019178,2]
[322002288,1712680235367,-500.0,0.00019178,2]
[322002289,1712680235377,-500.0,0.00019178,2]
[322002290,1712680235386,-500.0,0.00019178,2]
[322002291,1712680235396,-500.0,0.00019178,2]
[322002292,1712680235405,-500.0,0.00019178,2]
[322002293,1712680235415,-500.0,0.00019178,2]
[322002294,1712680235424,-500.0,0.00019178,2]
[322002295,1712680235434,-500.0,0.00019178,2]
[322002296,1712680235443,-500.0,0.00019178,2]
[322002297,1712680235456,-500.0,0.00019178,2]
[322002298,1712680235465,-500.0,0.00019178,2]
[322002299,1712680235475,-553.47112444,0.00019178,2]
[322002300,1712680235484,-500.0,0.00019178,2]
[322002301,1712680235494,-500.0,0.00019178,2]
[322002302,1712680235504,-500.0,0.00019178,2]
[322002303,1712680235514,-500.0,0.00019178,2]
[322002304,1712680235523,-500.0,0.00019178,2]
[322002305,1712680235533,-500.0,0.00019178,2]
[322002306,1712680235543,-500.0,0.00019178,2]
[322002307,1712680235557,-500.0,0.00019178,2]
[322002308,1712680235567,-504.09479158,0.00019178,2]
[322002309,1712680235577,-500.0,0.00019178,2]
[322002310,1712680235588,-500.0,0.00019178,2]
[322002311,1712680235599,-500.0,0.00019178,2]
[322002312,1712680235609,-500.0,0.00019178,2]
[322002313,1712680235618,-500.0,0.00019178,2]
[322002314,1712680235628,-500.0,0.00019178,2]
[322002315,1712680235639,-500.0,0.00019178,2]
[322002316,1712680235648,-500.0,0.00019178,2]
[322002317,1712680235658,-500.0,0.00019178,2]
[322002318,1712680235668,-500.0,0.00019178,2]
[322002319,1712680235678,-500.0,0.00019178,2]
[322002320,1712680235687,-500.0,0.00019178,2]
[322002321,1712680235698,-500.0,0.00019178,2]
[322002322,1712680235710,-500.0,0.00019178,2]
[322002323,1712680235719,-500.0,0.00019178,2]
[322002324,1712680235729,-500.0,0.00019178,2]
[322002325,1712680235739,-508.41852017,0.00019178,2]
[322002326,1712680235749,-500.0,0.00019178,2]
[322002327,1712680235758,-500.0,0.00019178,2]
[322002328,1712680235768,-500.0,0.00019178,2]
[322002329,1712680235777,-500.0,0.00019178,2]
[322002330,1712680235787,-632.2,0.00019178,2]
[322002331,1712680235798,-500.0,0.00019178,2]
[322002332,1712680235810,-500.0,0.00019178,2]
[322002333,1712680235821,-500.0,0.00019178,2]
[322002334,1712680235833,-500.0,0.00019178,2]
[322002335,1712680235844,-514.51609907,0.00019178,2]
[322002336,1712680235854,-500.0,0.00019178,2]
[322002337,1712680235864,-500.0,0.00019178,2]
[322002338,1712680235874,-500.0,0.00019178,2]
[322002339,1712680235883,-500.0,0.00019178,2]
[322002340,1712680235893,-500.0,0.00019178,2]
[322002341,1712680235902,-500.0,0.00019178,2]
[322002342,1712680235912,-500.0,0.00019178,2]
[322002343,1712680235921,-507.79137963,0.00019178,2]
[322002344,1712680235931,-500.0,0.00019178,2]
[322002345,1712680236157,-500.0,0.00019178,2]